[Event "44th Chess Olympiad Open 2022"]
[Site "Chennai"]
[Date "2022.08.01"]
[Round "4.72"]
[White "Ebosse Kingue Victor Patrick"]
[Black "Chinchilla, Alejandro Jose"]
[Result "1-0"]
[WhiteElo "2054"]
[BlackElo "2166"]
[Annotator "NA RC"]
[PlyCount "95"]
[EventDate "2022.??.??"]
[TimeControl "60"]

1. e4 {[%emt 0:00:24]} e5 {[%emt 0:00:43]} 2. Nf3 {[%emt 0:00:58]} Nc6 {
[%emt 0:00:10]} 3. Bc4 {[%emt 0:00:40]} Bc5 {[%emt 0:00:28]} 4. c3 {[%emt 0:00:
00]} Nf6 {[%emt 0:00:50]} 5. d3 {[%emt 0:00:14]} d6 {[%emt 0:00:17]} 6. a4 {
[%emt 0:01:33]} a6 {[%emt 0:00:15]} 7. O-O {[%emt 0:01:02]} Ba7 {[%emt 0:00:13]
} 8. Qe2 {[%emt 0:04:04]} h6 {[%emt 0:02:14]} 9. Be3 {[%emt 0:00:29]} Bxe3 {
[%emt 0:01:04]} 10. fxe3 {[%emt 0:02:13]} O-O {[%emt 0:00:31]} 11. Nbd2 {
[%emt 0:00:25]} d5 {[%emt 0:15:20]} 12. exd5 {[%emt 0:02:27]} Nxd5 {[%emt 0:00:
00]} 13. a5 {[%emt 0:12:32]} Be6 {[%emt 0:14:01]} 14. Bb3 {[%emt 0:05:28]} b6 {
[%emt 0:13:54]} 15. axb6 {[%emt 0:00:59]} cxb6 {[%emt 0:00:08]} 16. d4 {
[%emt 0:01:12]} exd4 {[%emt 0:00:28]} 17. Nxd4 {[%emt 0:00:19]} Nxd4 {[%emt 0:
00:00]} 18. exd4 {[%emt 0:16:03]} Re8 {[%emt 0:18:23]} 19. Qf3 {[%emt 0:00:00]}
Qg5 {[%emt 0:08:45]} 20. Rf2 {[%emt 0:00:00]} Ra7 {[%emt 0:03:22]} 21. Re1 {
[%emt 0:00:00]} Nf6 {[%emt 0:10:49]} 22. Bxe6 {[%emt 0:04:09]} Rxe6 {[%emt 0:
00:00]} 23. Rxe6 {[%emt 0:00:52]} fxe6 {[%emt 0:00:03]} 24. h3 {[%emt 0:05:14]}
Qd5 {[%emt 0:00:13]} 25. Qg3 {[%emt 0:00:33]} Kh7 {[%emt 0:00:32]} 26. Qd3+ {
[%emt 0:01:57]} Kh8 {[%emt 0:01:24]} 27. c4 {[%emt 0:03:08]} Qc6 {[%emt 0:00:
00]} 28. Nf3 {[%emt 0:01:27]} Rc7 {[%emt 0:03:35]} 29. Ne5 {[%emt 0:01:38]} Qe4
{[%emt 0:00:09]} 30. Rxf6 {[%emt 0:02:12]} Qxd3 {[%emt 0:00:37]} 31. Rf8+ {
[%emt 0:00:13]} Kh7 {[%emt 0:00:05]} 32. Nxd3 {[%emt 0:00:13]} Rxc4 {[%emt 0:
00:00]} 33. Rd8 {[%emt 0:02:18]} Rc2 {[%emt 0:00:00]} 34. d5 {[%emt 0:03:36]}
exd5 {[%emt 0:00:12]} 35. Rxd5 {[%emt 0:00:11]} Rd2 {[%emt 0:01:15]} 36. Nb4 {
[%emt 0:00:51]} Rxb2 {[%emt 0:00:06]} 37. Nxa6 {[%emt 0:00:19]} b5 {[%emt 0:00:
00]} 38. Rd4 {[%emt 0:00:50]} Ra2 {[%emt 0:00:18]} 39. Nc7 {[%emt 0:01:13]} Rb2
{[%emt 0:00:51]} 40. Nd5 {[%emt 0:00:21]} Rc2 {[%emt 0:00:00]} 41. Rb4 {
[%emt 0:32:53]} Rc5 {[%emt 0:04:38]} 42. Nf4 {[%emt 0:00:00]} Rc4 {[%emt 0:00:
00]} 43. Rxc4 {[%emt 0:00:00]} bxc4 {[%emt 0:00:04]} 44. Kf2 {[%emt 0:00:00]}
g5 {[%emt 0:00:02]} 45. Nd5 {[%emt 0:00:00]} h5 {[%emt 0:00:48]} 46. Kf3 {
[%emt 0:00:00]} Kg6 {[%emt 0:00:15]} 47. Ke4 {[%emt 0:00:00]} g4 {[%emt 0:00:
00]} 48. hxg4 {[%emt 0:00:00]} 1-0

[Event "44th Chess Olympiad Open 2022"]
[Site "Chennai"]
[Date "2022.08.01"]
[Round "4.72"]
[White "Garcia Cuestas, Kevin"]
[Black "Amba Oyon Marius Claude"]
[Result "1-0"]
[WhiteElo "1984"]
[BlackElo "1938"]
[Annotator "NA RC"]
[PlyCount "137"]
[EventDate "2022.??.??"]
[TimeControl "60"]

1. Nf3 {[%emt 0:00:15]} c5 {[%emt 0:00:56]} 2. b3 {[%emt 0:00:45]} e6 {[%emt 0:
00:00]} 3. Bb2 {[%emt 0:00:44]} Nf6 {[%emt 0:00:45]} 4. c4 {[%emt 0:01:28]} Be7
{[%emt 0:01:16]} 5. g3 {[%emt 0:00:36]} Nc6 {[%emt 0:01:29]} 6. Bg2 {[%emt 0:
00:00]} d5 {[%emt 0:01:01]} 7. cxd5 {[%emt 0:05:11]} exd5 {[%emt 0:03:06]} 8.
d4 {[%emt 0:02:52]} c4 {[%emt 0:19:12]} 9. O-O {[%emt 0:30:01]} cxb3 {[%emt 0:
00:00]} 10. Qxb3 {[%emt 0:04:14]} Na5 {[%emt 0:01:39]} 11. Qd3 {[%emt 0:02:48]}
Nc4 {[%emt 0:02:19]} 12. Bc1 {[%emt 0:02:12]} O-O {[%emt 0:01:18]} 13. Nc3 {
[%emt 0:01:50]} h6 {[%emt 0:05:40]} 14. Ne5 {[%emt 0:03:17]} Be6 {[%emt 0:00:
00]} 15. Rb1 {[%emt 0:10:14]} Nd6 {[%emt 0:09:51]} 16. Rb3 {[%emt 0:09:39]} Rc8
{[%emt 0:03:00]} 17. f3 {[%emt 0:03:37]} b6 {[%emt 0:04:27]} 18. Nb5 {[%emt 0:
00:00]} Bf5 {[%emt 0:08:24]} 19. Qe3 {[%emt 0:00:47]} Nxb5 {[%emt 0:04:04]} 20.
Rxb5 {[%emt 0:00:09]} Bc2 {[%emt 0:02:13]} 21. Bh3 {[%emt 0:01:40]} Rc7 {
[%emt 0:00:35]} 22. Ba3 {[%emt 0:00:39]} Bxa3 {[%emt 0:01:59]} 23. Qxa3 {
[%emt 0:00:09]} Bh7 {[%emt 0:00:34]} 24. Rc1 {[%emt 0:00:53]} a6 {[%emt 0:00:
00]} 25. Rb3 {[%emt 0:01:58]} Rxc1+ {[%emt 0:00:40]} 26. Qxc1 {[%emt 0:00:05]}
b5 {[%emt 0:02:52]} 27. Rc3 {[%emt 0:00:20]} Qb8 {[%emt 0:02:32]} 28. Rc7 {
[%emt 0:00:44]} Bg6 {[%emt 0:05:57]} 29. Qc5 {[%emt 0:00:22]} Re8 {[%emt 0:00:
00]} 30. Qa7 {[%emt 0:05:57]} Qxa7 {[%emt 0:01:20]} 31. Rxa7 {[%emt 0:00:09]}
Rb8 {[%emt 0:02:26]} 32. Nxg6 {[%emt 0:01:10]} fxg6 {[%emt 0:00:03]} 33. Rxa6 {
[%emt 0:00:14]} b4 {[%emt 0:01:02]} 34. Rc6 {[%emt 0:01:32]} Kf8 {[%emt 0:00:
00]} 35. Rc2 {[%emt 0:01:18]} Rb7 {[%emt 0:00:43]} 36. Kf2 {[%emt 0:01:31]} Ke7
{[%emt 0:00:42]} 37. Rb2 {[%emt 0:00:22]} Ne8 {[%emt 0:00:48]} 38. Rb3 {
[%emt 0:01:42]} Nd6 {[%emt 0:00:28]} 39. Ke3 {[%emt 0:00:31]} g5 {[%emt 0:00:
00]} 40. Kd3 {[%emt 0:00:59]} Nc4 {[%emt 0:01:12]} 41. e4 {[%emt 0:29:47]} Na5
{[%emt 0:30:04]} 42. Rb1 {[%emt 0:00:19]} Kd6 {[%emt 0:01:45]} 43. Bf5 {
[%emt 0:00:47]} b3 {[%emt 0:00:47]} 44. axb3 {[%emt 0:01:13]} Rxb3+ {[%emt 0:
00:00]} 45. Rxb3 {[%emt 0:00:07]} Nxb3 {[%emt 0:00:08]} 46. Kc3 {[%emt 0:00:51]
} Na5 {[%emt 0:00:49]} 47. exd5 {[%emt 0:00:00]} Nb7 {[%emt 0:00:00]} 48. Kc4 {
[%emt 0:00:00]} Na5+ {[%emt 0:00:00]} 49. Kb4 {[%emt 0:00:00]} Nb7 {[%emt 0:00:
00]} 50. Be6 {[%emt 0:00:00]} Nd8 {[%emt 0:00:00]} 51. Kc4 {[%emt 0:00:00]} Nb7
{[%emt 0:00:00]} 52. Kb5 {[%emt 0:00:00]} Kc7 {[%emt 0:00:00]} 53. Kc4 {
[%emt 0:00:00]} Kd6 {[%emt 0:00:00]} 54. Kd3 {[%emt 0:00:00]} Ke7 {[%emt 0:00:
00]} 55. Ke4 {[%emt 0:00:00]} Nd6+ {[%emt 0:00:00]} 56. Ke5 {[%emt 0:00:00]}
Nc4+ {[%emt 0:00:00]} 57. Kf5 {[%emt 0:00:00]} Nd6+ {[%emt 0:00:00]} 58. Kg6 {
[%emt 0:00:00]} Kf8 {[%emt 0:00:00]} 59. f4 {[%emt 0:01:16]} gxf4 {[%emt 0:00:
00]} 60. gxf4 {[%emt 0:00:08]} Ne8 {[%emt 0:00:00]} 61. f5 {[%emt 0:00:22]} Ke7
{[%emt 0:00:00]} 62. h4 {[%emt 0:00:30]} Kf8 {[%emt 0:00:00]} 63. Bd7 {[%emt 0:
00:00]} Nf6 {[%emt 0:00:00]} 64. Bc6 {[%emt 0:00:22]} Ne4 {[%emt 0:00:00]} 65.
h5 {[%emt 0:01:19]} Kg8 {[%emt 0:00:00]} 66. Bd7 {[%emt 0:01:15]} Kf8 {[%emt 0:
00:00]} 67. Be6 {[%emt 0:00:18]} Ke7 {[%emt 0:03:37]} 68. Kxg7 {[%emt 0:00:28]}
Nd6 {[%emt 0:00:29]} 69. f6+ {[%emt 0:00:05]} 1-0

[Event "44th Chess Olympiad Open 2022"]
[Site "Chennai"]
[Date "2022.08.01"]
[Round "4.72"]
[White "Zebaze Dongmo Loic Dylane"]
[Black "Gavarrete, Joel"]
[Result "0-1"]
[WhiteElo "1837"]
[BlackElo "2035"]
[Annotator "NA RC"]
[PlyCount "124"]
[EventDate "2022.??.??"]
[TimeControl "60"]

1. d4 {[%emt 0:00:10]} d5 {[%emt 0:00:27]} 2. Bf4 {[%emt 0:00:20]} Nf6 {
[%emt 0:00:41]} 3. e3 {[%emt 0:00:19]} c5 {[%emt 0:01:31]} 4. c3 {[%emt 0:00:
00]} Qb6 {[%emt 0:02:09]} 5. Qb3 {[%emt 0:02:26]} c4 {[%emt 0:02:14]} 6. Qc2 {
[%emt 0:02:02]} Nc6 {[%emt 0:08:03]} 7. Nd2 {[%emt 0:01:59]} Nh5 {[%emt 0:00:
00]} 8. Bg5 {[%emt 0:03:19]} h6 {[%emt 0:03:28]} 9. Bh4 {[%emt 0:00:46]} g5 {
[%emt 0:01:12]} 10. Be2 {[%emt 0:00:34]} Ng7 {[%emt 0:04:27]} 11. Bg3 {[%emt 0:
00:00]} Bf5 {[%emt 0:00:21]} 12. e4 {[%emt 0:04:08]} Bg6 {[%emt 0:00:30]} 13.
Qc1 {[%emt 0:04:04]} e6 {[%emt 0:01:39]} 14. Ngf3 {[%emt 0:05:00]} Nh5 {
[%emt 0:10:10]} 15. exd5 {[%emt 0:02:35]} exd5 {[%emt 0:02:08]} 16. O-O {
[%emt 0:04:46]} Nxg3 {[%emt 0:00:19]} 17. hxg3 {[%emt 0:02:11]} Bg7 {[%emt 0:
00:00]} 18. Bd1 {[%emt 0:01:10]} O-O {[%emt 0:07:22]} 19. Bc2 {[%emt 0:02:30]}
f5 {[%emt 0:13:24]} 20. b3 {[%emt 0:02:04]} Qa5 {[%emt 0:03:24]} 21. bxc4 {
[%emt 0:01:33]} Qxc3 {[%emt 0:01:48]} 22. Bxf5 {[%emt 0:00:46]} Qxc1 {[%emt 0:
00:00]} 23. Be6+ {[%emt 0:00:05]} Bf7 {[%emt 0:02:19]} 24. Bxf7+ {[%emt 0:00:
00]} Rxf7 {[%emt 0:00:05]} 25. Raxc1 {[%emt 0:00:11]} Nxd4 {[%emt 0:02:41]} 26.
Nxd4 {[%emt 0:00:31]} Bxd4 {[%emt 0:00:04]} 27. Nf3 {[%emt 0:00:39]} Bb6 {
[%emt 0:01:23]} 28. cxd5 {[%emt 0:01:01]} Rd7 {[%emt 0:01:21]} 29. Rcd1 {
[%emt 0:03:11]} Rad8 {[%emt 0:00:11]} 30. Rfe1 {[%emt 0:01:24]} Rxd5 {[%emt 0:
00:00]} 31. Rxd5 {[%emt 0:00:05]} Rxd5 {[%emt 0:00:05]} 32. Re7 {[%emt 0:11:45]
} Rd1+ {[%emt 0:00:12]} 33. Re1 {[%emt 0:05:21]} Rxe1+ {[%emt 0:01:57]} 34.
Nxe1 {[%emt 0:00:02]} Kf7 {[%emt 0:00:08]} 35. Kf1 {[%emt 0:00:39]} Ke6 {
[%emt 0:00:05]} 36. Ke2 {[%emt 0:00:17]} Kd5 {[%emt 0:00:16]} 37. Nd3 {[%emt 0:
00:00]} Bc7 {[%emt 0:03:46]} 38. g4 {[%emt 0:01:02]} b5 {[%emt 0:01:31]} 39. f3
{[%emt 0:00:36]} a5 {[%emt 0:00:15]} 40. Kd2 {[%emt 0:03:19]} Kd4 {[%emt 0:00:
00]} 41. Kc2 {[%emt 0:41:10]} Ke3 {[%emt 0:31:00]} 42. Nc5 {[%emt 0:10:39]} Kf2
{[%emt 0:00:45]} 43. Ne6 {[%emt 0:00:08]} Be5 {[%emt 0:00:39]} 44. Kd3 {
[%emt 0:00:22]} a4 {[%emt 0:03:26]} 45. Ke4 {[%emt 0:00:44]} Bf4 {[%emt 0:00:
00]} 46. a3 {[%emt 0:03:38]} Be3 {[%emt 0:01:41]} 47. Nc7 {[%emt 0:00:00]} b4 {
[%emt 0:00:00]} 48. Nd5 {[%emt 0:00:00]} Bd2 {[%emt 0:00:00]} 49. Kd3 {[%emt 0:
00:00]} bxa3 {[%emt 0:00:00]} 50. Kc2 {[%emt 0:00:48]} a2 {[%emt 0:00:00]} 51.
Kb2 {[%emt 0:00:10]} Kxg2 {[%emt 0:00:00]} 52. Ne7 {[%emt 0:01:24]} Kxf3 {
[%emt 0:00:00]} 53. Nf5 {[%emt 0:00:09]} Kxg4 {[%emt 0:00:00]} 54. Nxh6+ {
[%emt 0:00:02]} Kf4 {[%emt 0:00:00]} 55. Kxa2 {[%emt 0:00:51]} Bb4 {[%emt 0:00:
00]} 56. Ng8 {[%emt 0:02:58]} Kf3 {[%emt 0:00:00]} 57. Nf6 {[%emt 0:00:19]} g4
{[%emt 0:00:00]} 58. Nd5 {[%emt 0:02:01]} Bd2 {[%emt 0:00:00]} 59. Ne7 {
[%emt 0:00:41]} g3 {[%emt 0:00:00]} 60. Nf5 {[%emt 0:00:08]} Bb4 {[%emt 0:00:
00]} 61. Nd4+ {[%emt 0:00:53]} Kf2 {[%emt 0:00:00]} 62. Nc6 {[%emt 0:00:32]}
Bc3 {[%emt 0:00:00]} 0-1

[Event "44th Chess Olympiad Open 2022"]
[Site "Chennai"]
[Date "2022.08.01"]
[Round "4.73"]
[White "Willem Blijstra"]
[Black "Dabuae, Thubalkain"]
[Result "1-0"]
[WhiteElo "2198"]
[BlackElo "1941"]
[Annotator "NA RC"]
[PlyCount "87"]
[EventDate "2022.??.??"]
[TimeControl "60"]

1. d4 {[%emt 0:00:04]} Nf6 {[%emt 0:00:11]} 2. c4 {[%emt 0:00:06]} e6 {[%emt 0:
00:00]} 3. Nc3 {[%emt 0:01:22]} Bb4 {[%emt 0:00:13]} 4. Qc2 {[%emt 0:00:19]}
O-O {[%emt 0:00:31]} 5. a3 {[%emt 0:02:32]} Bxc3+ {[%emt 0:00:51]} 6. Qxc3 {
[%emt 0:00:39]} Ne4 {[%emt 0:00:52]} 7. Qc2 {[%emt 0:00:47]} d5 8. Nf3 {
[%emt 0:03:54]} b6 {[%emt 0:00:11]} 9. Bf4 {[%emt 0:01:23]} c5 {[%emt 0:01:29]}
10. e3 {[%emt 0:02:10]} Bb7 {[%emt 0:05:09]} 11. Bd3 {[%emt 0:05:01]} Nd7 {
[%emt 0:00:25]} 12. O-O {[%emt 0:01:30]} f6 {[%emt 0:01:13]} 13. h3 {[%emt 0:
00:00]} Qe7 {[%emt 0:00:29]} 14. cxd5 {[%emt 0:05:49]} exd5 {[%emt 0:00:21]}
15. dxc5 {[%emt 0:03:35]} Ndxc5 {[%emt 0:00:40]} 16. Be2 {[%emt 0:01:12]} Rac8
{[%emt 0:01:39]} 17. Qd1 {[%emt 0:00:30]} Ne6 {[%emt 0:03:58]} 18. Bh2 {
[%emt 0:00:19]} Rc5 {[%emt 0:01:23]} 19. Rc1 {[%emt 0:02:06]} Rfc8 {[%emt 0:00:
00]} 20. Rxc5 {[%emt 0:00:17]} Qxc5 21. Bd3 {[%emt 0:01:37]} g6 {[%emt 0:09:27]
} 22. Re1 {[%emt 0:08:35]} f5 {[%emt 0:02:40]} 23. Be5 {[%emt 0:00:27]} f4 {
[%emt 0:00:11]} 24. b4 {[%emt 0:05:16]} Qf8 {[%emt 0:03:09]} 25. Qb3 {[%emt 0:
00:00]} Qf7 {[%emt 0:00:45]} 26. exf4 {[%emt 0:03:25]} h6 {[%emt 0:02:06]} 27.
g3 {[%emt 0:01:13]} g5 {[%emt 0:01:06]} 28. Ba1 {[%emt 0:05:28]} gxf4 {[%emt 0:
00:00]} 29. g4 {[%emt 0:01:19]} h5 {[%emt 0:10:31]} 30. Ne5 {[%emt 0:02:33]}
Qg7 {[%emt 0:00:45]} 31. f3 {[%emt 0:02:07]} N4g5 {[%emt 0:05:45]} 32. Kg2 {
[%emt 0:05:49]} hxg4 {[%emt 0:03:59]} 33. hxg4 {[%emt 0:04:22]} Rc4 {[%emt 0:
00:00]} 34. Ng6 {[%emt 0:06:24]} Rd4 {[%emt 0:01:51]} 35. Ne7+ {[%emt 0:02:15]}
Qxe7 36. Bxd4 {[%emt 0:00:05]} Nxd4 {[%emt 0:01:27]} 37. Rxe7 {[%emt 0:00:10]}
Nxb3 {[%emt 0:01:37]} 38. Rxb7 {[%emt 0:00:12]} a5 {[%emt 0:00:49]} 39. Rxb6 {
[%emt 0:00:05]} axb4 {[%emt 0:00:19]} 40. Rxb4 {[%emt 0:00:05]} Nc5 {[%emt 0:
00:00]} 41. Bf5 {[%emt 0:30:22]} Nge6 {[%emt 0:00:17]} 42. Bxe6+ {[%emt 0:00:
00]} Nxe6 {[%emt 0:31:23]} 43. a4 {[%emt 0:00:12]} Kf7 {[%emt 0:02:11]} 44. a5
{[%emt 0:00:10]} 1-0

[Event "44th Chess Olympiad Open 2022"]
[Site "Chennai"]
[Date "2022.08.01"]
[Round "4.73"]
[White "Rurik Capella"]
[Black "Taleka, Jed Selu"]
[Result "1-0"]
[WhiteElo "1952"]
[BlackElo "1672"]
[Annotator "NA RC"]
[PlyCount "73"]
[EventDate "2022.??.??"]
[TimeControl "60"]

1. e4 {[%emt 0:00:02]} Nc6 {[%emt 0:00:57]} 2. d4 {[%emt 0:00:27]} d5 {[%emt 0:
00:00]} 3. e5 {[%emt 0:00:25]} Bf5 {[%emt 0:00:16]} 4. Nf3 {[%emt 0:02:35]} e6
{[%emt 0:00:16]} 5. Bd3 {[%emt 0:01:36]} Bxd3 {[%emt 0:00:25]} 6. Qxd3 {
[%emt 0:00:01]} Nge7 {[%emt 0:01:29]} 7. Nbd2 {[%emt 0:03:46]} a6 {[%emt 0:00:
00]} 8. Nf1 {[%emt 0:04:13]} Ng6 {[%emt 0:00:58]} 9. h4 {[%emt 0:00:25]} Nb4 {
[%emt 0:00:18]} 10. Qd1 {[%emt 0:05:32]} c5 {[%emt 0:00:21]} 11. h5 {[%emt 0:
00:00]} Ne7 {[%emt 0:00:39]} 12. c3 {[%emt 0:04:23]} Nbc6 {[%emt 0:00:10]} 13.
Ng3 {[%emt 0:08:38]} Qc7 {[%emt 0:02:05]} 14. h6 {[%emt 0:01:41]} g6 {[%emt 0:
00:00]} 15. Bg5 {[%emt 0:00:46]} Nf5 {[%emt 0:03:05]} 16. Nxf5 {[%emt 0:02:48]}
gxf5 {[%emt 0:00:10]} 17. Rc1 {[%emt 0:10:25]} Rg8 {[%emt 0:00:30]} 18. Kf1 {
[%emt 0:00:23]} Qb6 {[%emt 0:00:42]} 19. b3 {[%emt 0:01:13]} Rc8 {[%emt 0:00:
00]} 20. Bf6 {[%emt 0:01:31]} Rg6 {[%emt 0:00:11]} 21. Nh4 {[%emt 0:05:33]} Rg4
{[%emt 0:02:29]} 22. Qf3 {[%emt 0:04:53]} Kd7 {[%emt 0:01:11]} 23. Nxf5 {
[%emt 0:00:21]} Rg6 {[%emt 0:03:49]} 24. Nh4 {[%emt 0:07:16]} Rg8 {[%emt 0:00:
00]} 25. Qd3 {[%emt 0:03:05]} cxd4 {[%emt 0:00:29]} 26. Qxh7 {[%emt 0:00:21]}
Be7 {[%emt 0:00:43]} 27. Nf3 {[%emt 0:06:45]} dxc3 {[%emt 0:07:43]} 28. Qxf7 {
[%emt 0:04:11]} Rcf8 {[%emt 0:01:10]} 29. h7 {[%emt 0:01:33]} Rh8 {[%emt 0:00:
00]} 30. Qg6 {[%emt 0:01:02]} Bxf6 {[%emt 0:00:54]} 31. exf6 {[%emt 0:00:02]}
d4 {[%emt 0:00:40]} 32. Qg7+ {[%emt 0:07:14]} Kc8 {[%emt 0:00:47]} 33. Qxf8+ {
[%emt 0:00:41]} Rxf8 {[%emt 0:01:14]} 34. h8=Q {[%emt 0:00:05]} Rxh8 {[%emt 0:
00:00]} 35. Rxh8+ {[%emt 0:00:00]} Qd8 {[%emt 0:08:56]} 36. Rxd8+ {[%emt 0:00:
00]} Nxd8 {[%emt 0:00:02]} 37. Nxd4 {[%emt 0:00:30]} 1-0

[Event "44th Chess Olympiad Open 2022"]
[Site "Chennai"]
[Date "2022.08.01"]
[Round "4.74"]
[White "Vella, Duncan"]
[Black "Prasad, Rudr"]
[Result "1/2-1/2"]
[WhiteElo "1985"]
[BlackElo "1566"]
[Annotator "NA RC"]
[PlyCount "70"]
[EventDate "2022.??.??"]
[TimeControl "60"]

1. e4 {[%emt 0:00:05]} c6 {[%emt 0:00:19]} 2. d4 {[%emt 0:00:15]} d5 {[%emt 0:
00:00]} 3. exd5 {[%emt 0:00:05]} cxd5 {[%emt 0:00:07]} 4. Bd3 {[%emt 0:00:06]}
Nc6 {[%emt 0:00:12]} 5. c3 {[%emt 0:00:14]} Qc7 {[%emt 0:00:35]} 6. Ne2 {
[%emt 0:01:06]} e6 {[%emt 0:01:43]} 7. Bf4 {[%emt 0:01:34]} Bd6 {[%emt 0:00:14]
} 8. Bxd6 {[%emt 0:00:54]} Qxd6 {[%emt 0:00:06]} 9. O-O {[%emt 0:04:32]} Nf6 {
[%emt 0:00:51]} 10. f4 {[%emt 0:01:23]} Ng4 {[%emt 0:07:04]} 11. Qe1 {[%emt 0:
00:00]} g6 {[%emt 0:16:36]} 12. Ng3 {[%emt 0:09:04]} Bd7 {[%emt 0:06:50]} 13.
Nd2 {[%emt 0:06:43]} O-O-O {[%emt 0:00:43]} 14. Nb3 {[%emt 0:01:52]} h5 {
[%emt 0:02:27]} 15. h3 {[%emt 0:09:19]} Nh6 {[%emt 0:03:12]} 16. Nc5 {[%emt 0:
00:00]} Nf5 {[%emt 0:05:35]} 17. b4 {[%emt 0:02:42]} h4 {[%emt 0:02:30]} 18.
Ne2 {[%emt 0:01:14]} Ne3 {[%emt 0:02:43]} 19. Rf3 {[%emt 0:01:39]} Nc4 {
[%emt 0:06:54]} 20. a4 {[%emt 0:05:58]} b6 {[%emt 0:00:00]} 21. Nb3 {[%emt 0:
00:00]} Kb8 {[%emt 0:02:40]} 22. a5 {[%emt 0:02:51]} b5 {[%emt 0:01:53]} 23.
Nc5 {[%emt 0:00:34]} Bc8 {[%emt 0:01:15]} 24. a6 {[%emt 0:05:10]} Ka8 {[%emt 0:
00:00]} 25. Bxc4 {[%emt 0:02:06]} dxc4 {[%emt 0:01:20]} 26. Qb1 {[%emt 0:01:03]
} Nb8 {[%emt 0:01:51]} 27. Qa2 {[%emt 0:00:31]} Qb6 {[%emt 0:01:47]} 28. Qa5 {
[%emt 0:09:48]} Rd6 {[%emt 0:02:45]} 29. Qxb6 {[%emt 0:00:00]} Rxb6 {[%emt 0:
00:00]} 30. Ra5 {[%emt 0:00:00]} Nxa6 {[%emt 0:01:50]} 31. Nxa6 {[%emt 0:02:20]
} Bxa6 {[%emt 0:00:28]} 32. Rf1 {[%emt 0:00:19]} Bb7 {[%emt 0:02:09]} 33. Rfa1
{[%emt 0:00:53]} a6 {[%emt 0:00:12]} 34. Kf2 {[%emt 0:00:13]} Kb8 {[%emt 0:00:
00]} 35. Ng1 {[%emt 0:00:16]} Kc7 {[%emt 0:06:55]} 1/2-1/2

[Event "44th Chess Olympiad Open 2022"]
[Site "Chennai"]
[Date "2022.08.01"]
[Round "4.74"]
[White "Cilia Vincenti, David"]
[Black "Nadan, Avinesh"]
[Result "1-0"]
[WhiteElo "1904"]
[BlackElo "1540"]
[Annotator "NA RC"]
[PlyCount "135"]
[EventDate "2022.??.??"]
[TimeControl "60"]

1. d4 {[%emt 0:00:03]} d5 {[%emt 0:00:21]} 2. c4 {[%emt 0:00:07]} Nf6 {[%emt 0:
00:00]} 3. cxd5 {[%emt 0:00:06]} Nxd5 {[%emt 0:00:26]} 4. Nf3 {[%emt 0:00:10]}
c6 {[%emt 0:05:30]} 5. e4 {[%emt 0:01:03]} Nf6 {[%emt 0:00:56]} 6. Nc3 {
[%emt 0:00:14]} e6 {[%emt 0:00:11]} 7. Bd3 {[%emt 0:00:45]} Be7 {[%emt 0:01:17]
} 8. O-O {[%emt 0:00:20]} b6 {[%emt 0:02:33]} 9. Qe2 {[%emt 0:00:41]} Bb7 {
[%emt 0:00:55]} 10. Rd1 {[%emt 0:00:24]} Nbd7 {[%emt 0:00:28]} 11. Bf4 {
[%emt 0:01:10]} O-O {[%emt 0:00:42]} 12. h3 {[%emt 0:00:27]} Re8 {[%emt 0:00:
00]} 13. Rac1 {[%emt 0:03:37]} Nf8 {[%emt 0:07:43]} 14. a3 {[%emt 0:03:24]} Ng6
{[%emt 0:00:38]} 15. Bh2 {[%emt 0:00:36]} Nh5 {[%emt 0:01:32]} 16. Qe3 {
[%emt 0:05:45]} Nh4 {[%emt 0:03:23]} 17. Nxh4 {[%emt 0:06:54]} Bxh4 {[%emt 0:
00:00]} 18. Be2 {[%emt 0:14:15]} g6 {[%emt 0:01:45]} 19. Bxh5 {[%emt 0:03:46]}
gxh5 {[%emt 0:00:29]} 20. Be5 {[%emt 0:01:51]} f6 {[%emt 0:01:47]} 21. Bg3 {
[%emt 0:02:26]} Bg5 {[%emt 0:00:33]} 22. f4 {[%emt 0:03:35]} Bh6 {[%emt 0:00:
00]} 23. Qf3 {[%emt 0:01:04]} Qe7 {[%emt 0:03:33]} 24. Qxh5 {[%emt 0:04:08]}
Bg7 {[%emt 0:01:05]} 25. Bh4 {[%emt 0:02:20]} Qf8 {[%emt 0:00:27]} 26. e5 {
[%emt 0:02:26]} f5 {[%emt 0:05:13]} 27. Rd3 {[%emt 0:05:31]} Qf7 {[%emt 0:00:
00]} 28. Qxf7+ {[%emt 0:03:22]} Kxf7 {[%emt 0:00:07]} 29. Nb5 {[%emt 0:00:42]}
cxb5 {[%emt 0:03:24]} 30. Rc7+ {[%emt 0:00:16]} Kf8 {[%emt 0:01:05]} 31. Rxb7 {
[%emt 0:01:12]} Reb8 {[%emt 0:00:52]} 32. Rc7 {[%emt 0:02:12]} Rc8 {[%emt 0:00:
00]} 33. Rdc3 {[%emt 0:00:34]} Rxc7 {[%emt 0:02:43]} 34. Rxc7 {[%emt 0:00:10]}
a5 {[%emt 0:02:02]} 35. Rc6 {[%emt 0:01:08]} Rb8 {[%emt 0:03:21]} 36. Rxe6 {
[%emt 0:01:12]} b4 {[%emt 0:06:32]} 37. axb4 {[%emt 0:01:26]} a4 {[%emt 0:00:
00]} 38. Rc6 {[%emt 0:00:22]} Kf7 {[%emt 0:01:09]} 39. d5 {[%emt 0:00:24]} Ke8
{[%emt 0:01:31]} 40. Rc7 {[%emt 0:01:18]} Bf8 {[%emt 0:03:06]} 41. d6 {[%emt 0:
00:00]} Bh6 {[%emt 0:38:20]} 42. d7+ {[%emt 0:00:25]} Kf8 {[%emt 0:00:07]} 43.
Rc8+ {[%emt 0:00:10]} Rxc8 {[%emt 0:01:30]} 44. dxc8=Q+ {[%emt 0:00:20]} Kg7 {
[%emt 0:00:36]} 45. Qxf5 {[%emt 0:00:19]} b5 {[%emt 0:01:22]} 46. Qf6+ {
[%emt 0:00:26]} Kg8 {[%emt 0:00:13]} 47. Qxh6 {[%emt 0:00:09]} Kf7 {[%emt 0:00:
00]} 48. Kf2 {[%emt 0:00:19]} Ke8 {[%emt 0:01:01]} 49. Ke3 {[%emt 0:00:03]} Kd7
{[%emt 0:00:29]} 50. Kd4 {[%emt 0:00:06]} Kc7 {[%emt 0:00:18]} 51. Kc5 {
[%emt 0:00:06]} a3 {[%emt 0:00:25]} 52. Kxb5 {[%emt 0:00:11]} axb2 {[%emt 0:00:
00]} 53. Qxh7+ {[%emt 0:00:07]} Kc8 {[%emt 0:00:24]} 54. Qb1 {[%emt 0:00:02]}
Kd7 {[%emt 0:01:07]} 55. Be1 {[%emt 0:00:07]} Ke6 {[%emt 0:00:08]} 56. g4 {
[%emt 0:00:08]} Ke7 {[%emt 0:00:42]} 57. h4 {[%emt 0:00:02]} Kf7 {[%emt 0:00:
00]} 58. f5 {[%emt 0:00:06]} Kg7 {[%emt 0:00:15]} 59. g5 {[%emt 0:00:05]} Kf7 {
[%emt 0:00:40]} 60. h5 {[%emt 0:00:05]} Kg7 {[%emt 0:00:27]} 61. e6 {[%emt 0:
00:00]} Kh7 {[%emt 0:01:36]} 62. f6+ {[%emt 0:00:10]} Kh8 {[%emt 0:00:16]} 63.
g6 {[%emt 0:00:08]} Kg8 {[%emt 0:00:11]} 64. h6 {[%emt 0:00:14]} Kh8 {[%emt 0:
00:00]} 65. Kc4 {[%emt 0:00:43]} Kg8 {[%emt 0:00:03]} 66. Kb3 {[%emt 0:00:08]}
Kh8 {[%emt 0:00:37]} 67. Kxb2 {[%emt 0:00:06]} Kg8 {[%emt 0:00:22]} 68. e7 {
[%emt 0:00:06]} 1-0